fUSD/lending_fUSD_20241026
["ID","MTS","AMOUNT","RATE_DAILY","PERIOD"]
[340836617,1729901275809,-185.75,0.00015342,2]
[340836618,1729901349165,-300.0,0.00019725,2]
[340836619,1729901349185,-225.0,0.00019725,2]
[340836620,1729901349205,-420.0,0.00021484,2]
[340836621,1729901349226,-287.0,0.00023401,2]
[340836622,1729901349247,-517.30839434,0.00027347,2]
[340836623,1729901349272,-150.0,0.00027447,5]
[340836624,1729901349294,-150.0,0.00027447,5]
[340836625,1729901349314,-290.82,0.00031035,2]
[340836626,1729901349336,-282.50463161,0.00031521,2]
[340836630,1729901431710,-150.0,0.00017417,2]
[340836631,1729901431720,-856.64391007,0.00031521,2]
[340836632,1729901431767,-286.87887406,0.00031521,2]
[340836688,1729901437806,-58.63479687,0.00031521,2]
[340836689,1729901437815,-685.23805884,0.0003168,2]
[340836690,1729901437827,-1051.27520469,0.0003168,2]
[340836691,1729901438069,-1940.81604422,0.0003168,2]
[340836693,1729901439747,-1135.73282981,0.0003168,2]
[340836694,1729901439758,-351.01306692,0.0003168,2]
[340836695,1729901439907,-685.7574252,0.0003168,2]
[340836696,1729901439922,-1335.895,0.0003168,2]
[340836697,1729901439935,-663.0019785,0.0003168,2]
[340836699,1729901442677,-1111.46892119,0.0003168,2]
[340836700,1729901442689,-24326.422838,0.0003168,2]
[340836701,1729901442969,-2211.960006,0.0003168,2]
[340836702,1729901443041,-1369.6500584,0.0003168,2]
[340836703,1729901443052,-2659.973968,0.0003168,2]
[340836704,1729901443066,-493.5186448,0.0003168,2]
[340836705,1729901443078,-269.18099872,0.0003168,2]
[340836706,1729901690597,155.75,0.00015342,2]
[340836709,1729902308273,3100.0,0.00014,2]
[340836710,1729902308322,203208.90661286,0.00014,2]
[340836711,1729902391485,1025.1638135,0.00015,2]
[340836713,1729902482180,95424.42957364,0.00015,2]
[340836741,1729902631838,-446.45853724,0.0001475,2]
[340836742,1729902631894,-398.76357876,0.0001475,2]
[340836743,1729902632014,-339.49536537,0.00014925,2]
[340836744,1729902632031,-28.45227071,0.0001496,2]
[340836745,1729902632044,-121.54772929,0.0001496,2]
[340836746,1729902632054,-150.0,0.00014999,2]
[340836747,1729902632064,-300.0,0.00014999,2]
[340836748,1729902632074,-2290.48343912,0.00015,2]
[340836749,1729902632086,-115941.5361231,0.00015,2]
[340836750,1729902632095,-811.42982615,0.000159,2]
[340836751,1729902632104,-28684.47455454,0.000159,2]
[340836752,1729902632113,-150.0,0.00016124,2]
[340836753,1729902632121,-500.0,0.0001618,2]
[340836754,1729902632130,-200.0,0.0001634,2]
[340836755,1729902632140,-500.0,0.0001685,2]
[340836756,1729902632150,-175.68057165,0.0001822,2]
[340836757,1729902632161,-181.54,0.00019178,2]
[340836758,1729902632170,-150.99,0.00019452,2]
[340836759,1729902632179,-299.99,0.00019452,7]
[340836760,1729902632189,-9999.99,0.00019452,2]
[340836761,1729902632198,-24492.73967442,0.0002,2]
[340836763,1729902632207,-3892.61559666,0.0002,2]
[340836765,1729902632216,-17855.94091107,0.00022,5]
[340836767,1729902632225,-265.74777893,0.0002301,2]
[340836768,1729902632235,-444.88731237,0.000232,2]
[340836770,1729902632244,-564.17105022,0.0002322,2]
[340836772,1729902632253,-1010.23633071,0.00023922,2]
[340836774,1729902632263,-969.89233964,0.00024,2]
[340836776,1729902632275,-3510.6750978,0.0002421,2]
[340836778,1729902632284,-3395.74058292,0.000245,2]
[340836780,1729902632293,-1892.5,0.00024566,2]
[340836782,1729902632302,-18878.0304771,0.00024576,2]
[340836786,1729902637877,-519.98,0.00024576,2]
[340836787,1729902637888,-446.18922112,0.00024576,2]
[340836788,1729902637899,-537.0,0.00024576,2]
[340836789,1729902638040,-601.94567442,0.00024576,2]
[340836790,1729902638051,-2916.85462736,0.00024576,2]
[340836791,1729902638060,-4643.24,0.00024576,2]
[340836792,1729902638069,-920.39,0.00024615,2]
[340836793,1729902638079,-177.55,0.00024946,2]
[340836794,1729902638088,-5647.18,0.00024946,2]
[340836795,1729902638097,-221.02,0.00024946,2]
[340836796,1729902638106,-1434.25,0.00024946,5]
[340836797,1729902638115,-500.0,0.00024973,2]
[340836798,1729902638124,-334.66,0.00024979,2]
[340836799,1729902638134,-5139.79,0.00024999,2]
[340836800,1729902638143,-500.0,0.00024999,2]
[340836801,1729902638152,-353.68668098,0.00024999,2]
[340836802,1729902638161,-500.0,0.00024999,2]
[340836803,1729902638170,-500.0,0.00024999,2]
[340836804,1729902638179,-491.72471688,0.00024999,2]
[340836805,1729902638188,-500.0,0.00024999,2]
[340836806,1729902638198,-500.0,0.00024999,2]
[340836807,1729902638207,-500.0,0.00024999,2]
[340836808,1729902638216,-500.0,0.00024999,2]
[340836809,1729902638225,-500.0,0.00024999,2]
[340836810,1729902638236,-500.0,0.00024999,2]
[340836811,1729902638246,-500.0,0.00024999,2]
[340836812,1729902638258,-435.74632444,0.00024999,2]
[340836813,1729902638268,-500.0,0.00024999,2]
[340836814,1729902638278,-500.0,0.00024999,2]
[340836815,1729902638287,-500.0,0.00024999,2]
[340836816,1729902638296,-500.0,0.00024999,2]
[340836817,1729902638306,-56093.7826294,0.00025,2]
[340836818,1729902638316,-940.49,0.00025036,2]
[340836819,1729902638326,-160.31,0.00026027,2]
[340836820,1729902638335,-920.39,0.00026879,2]
[340836821,1729902638345,-237.50237954,0.0002751,5]
[340836822,1729902638354,-160.14,0.00028544,2]
[340836823,1729902638363,-920.39,0.00029143,2]
[340836824,1729902638372,-659.53,0.00029287,2]
[340836825,1729902638381,-163.43,0.00029507,30]
[340836826,1729902638390,-182.17,0.00029528,120]
[340836827,1729902638400,-500.0,0.00029637,2]
[340836828,1729902638409,-207.62340022,0.0003,2]
[340836829,1729902638418,-165.0,0.00031,120]
[340836830,1729902638428,-500.0,0.00031143,5]
[340836831,1729902638437,-250.0,0.00031278,2]
[340836832,1729902638446,-151.08,0.00031364,2]
[340836834,1729902638456,-42216.11672642,0.0003137,2]
[340836836,1729902638465,-920.39,0.00031407,2]
[340836837,1729902638474,-151.08,0.00031416,2]
[340836839,1729902638483,-151.08,0.00031469,2]
[340836841,1729902638492,-151.08,0.00031521,2]
[340836843,1729902638503,-200.0,0.00031609,2]
[340836845,1729902638513,-250.0,0.00031631,2]
[340836847,1729902638522,-150.01,0.00031679,2]
[340836849,1729902638531,-2000.0,0.0003168,2]
[340836851,1729902638540,-200.0,0.0003168,2]
[340836853,1729902638549,-150.0,0.00031765,2]
[340836855,1729902638558,-191.05158735,0.000319,2]
[340836857,1729902638568,-325.07615438,0.000319,2]
[340836859,1729902638577,-3548.87021524,0.00031925,15]
[340836861,1729902638586,-2519.15,0.00031974,2]
[340836863,1729902638596,-187.14,0.0003198,10]
[340836865,1729902638605,-29962.9816585,0.0003199,6]
[340836867,1729902638614,-151.0,0.0003199,7]
[340836869,1729902638624,-151.0,0.0003199,7]
[340836870,1729902638633,-151.0,0.0003199,7]
[340836872,1729902638642,-151.0,0.0003199,7]
[340836874,1729902638652,-151.0,0.0003199,7]
[340836875,1729902638661,-644.612795,0.0003199,7]
[340836876,1729902638670,-157.631512,0.0003199,7]
[340836877,1729902638679,-644.612795,0.0003199,7]
[340836878,1729902638689,-151.0,0.0003199,7]
[340836879,1729902638698,-151.0,0.0003199,7]
[340836880,1729902638707,-151.0,0.0003199,7]
[340836881,1729902638717,-356.92147856,0.0003199,2]
[340836882,1729902638726,-151.0,0.0003199,7]
[340836883,1729902638735,-165.700835,0.0003199,7]
[340836884,1729902638744,-90650.31,0.00032,2]
[340836885,1729902638756,-5000.0,0.00032,14]
[340836886,1729902638765,-5000.0,0.00032,14]
[340836887,1729902638774,-5000.0,0.00032,14]
[340836888,1729902638784,-5000.0,0.00032,14]
[340836889,1729902638793,-5000.0,0.00032,14]
[340836890,1729902638802,-5000.0,0.00032,14]
[340836891,1729902638812,-5000.0,0.00032,14]
[340836892,1729902638821,-5000.0,0.00032,14]
[340836893,1729902638830,-5000.0,0.00032,14]
[340836894,1729902638840,-5000.0,0.00032,14]
[340836895,1729902638849,-5000.0,0.00032,14]
[340836896,1729902638858,-5000.0,0.00032,14]
[340836897,1729902638868,-5000.0,0.00032,14]
[340836898,1729902638877,-5000.0,0.00032,14]
[340836899,1729902638887,-5000.0,0.00032,14]
[340836900,1729902638896,-5000.0,0.00032,14]
[340836901,1729902638905,-5000.0,0.00032,14]
[340836902,1729902638914,-5000.0,0.00032,14]
[340836903,1729902638924,-5000.0,0.00032,14]
[340836904,1729902638933,-5000.0,0.00032,14]
[340836905,1729902638943,-5000.0,0.00032,14]
[340836906,1729902638952,-5000.0,0.00032,14]
[340836907,1729902638962,-2415.341776,0.00032,14]
[340836908,1729902638972,-151.0,0.00032,7]
[340836909,1729902638982,-151.0,0.00032,7]
[340836910,1729902638991,-151.0,0.00032,7]
[340836911,1729902639003,-644.612795,0.00032,7]
[340836912,1729902639012,-644.612795,0.00032,7]
[340836913,1729902639022,-151.0,0.00032,7]
[340836914,1729902639031,-153.289887,0.00032,7]
[340836915,1729902639041,-165.700835,0.00032,7]
[340836916,1729902639050,-165.700835,0.00032,7]
[340836917,1729902639060,-1000.0,0.00032513,5]
[340836918,1729902639069,-500.0,0.00032575,7]
[340836919,1729902639078,-1160.95,0.00032717,2]
[340836920,1729902639088,-4280.42595121,0.00032874,6]
[340836921,1729902639097,-325.27,0.00032877,2]
[340836922,1729902639106,-161.63226056,0.00032877,2]
[340836923,1729902639116,-250.0,0.00032884,120]
[340836924,1729902639126,-167.0,0.00032949,2]
[340836925,1729902639135,-150.0,0.00032992,2]
[340836926,1729902639144,-181.84,0.00032993,2]
[340836927,1729902639154,-920.39,0.00033671,2]
[340836928,1729902639163,-4075.12348994,0.0003409,3]
[340836929,1729902639173,-8560.85190242,0.00034147,6]
[340836930,1729902639183,-4280.42595121,0.00034312,6]
[340836931,1729902639192,-171.33,0.00034316,2]
[340836932,1729902639202,-1100.39146597,0.00034516,5]
[340836933,1729902639212,-150.0,0.00034548,10]
[340836934,1729902639222,-195.67010925,0.00034849,120]
[340836935,1729902639231,-334.66,0.00034971,2]
[340836936,1729902639242,-348.791,0.00035506,42]
[340836937,1729902639254,-182.814,0.00035506,42]
[340836938,1729902639264,-181.54,0.00035616,120]
[340836939,1729902639276,-167.0,0.00035669,2]
[340836940,1729902639286,-157.25867755,0.00035755,15]
[340836941,1729902639296,-500.0,0.00035755,15]
[340836942,1729902639306,-161.86792101,0.00035755,15]
[340836943,1729902639317,-3548.87021516,0.00035756,15]
[340836944,1729902639326,-920.39,0.00035935,2]
[340836945,1729902639336,-207.62340022,0.00036121,2]
[340836946,1729902639348,-191.05158729,0.00036614,2]
[340836947,1729902639359,-4280.42595121,0.00037239,7]
[340836948,1729902639369,-1000.0,0.00037249,2]
[340836949,1729902639379,-177.55,0.0003742,2]
[340836950,1729902639389,-186.99,0.00037454,2]
[340836951,1729902639398,-190.18,0.0003777,2]
[340836952,1729902639409,-920.39,0.00038199,2]
[340836953,1729902639418,-165.700835,0.00038346,7]
[340836954,1729902639536,-4280.42595121,0.00038346,7]
[340836955,1729902639546,-7641.95,0.00038356,2]
[340836956,1729902639556,-167.63,0.00038383,2]
[340836957,1729902639565,-167.0,0.00038388,2]
[340836958,1729902639575,-186.0,0.000391,2]
[340836959,1729902639585,-169.89,0.00039412,2]
[340836960,1729902639594,-186.99,0.00039514,2]
[340836961,1729902639603,-151.0,0.00039586,14]
[340836962,1729902639613,-163.083556,0.00039586,14]
[340836963,1729902639622,-151.0,0.00039586,14]
[340836964,1729902639631,-644.612795,0.00039586,14]
[340836965,1729902639640,-644.612795,0.00039586,14]
[340836966,1729902639649,-3548.87021516,0.00039586,15]
[340836967,1729902639659,-284.35925295,0.0004,14]
[340836968,1729902639669,-1014.15890552,0.0004,14]
[340836969,1729902639678,-151.0,0.0004,14]
[340836970,1729902639688,-920.39,0.00040463,2]
[340836971,1729902639698,-166.68,0.00040539,2]
[340836972,1729902639707,-4280.42595121,0.0004109,8]
[340836973,1729902639717,-151.13,0.00041096,2]
[340836974,1729902639726,-157.0,0.00041096,2]
[340836975,1729902639735,-151.0,0.00041096,14]
[340836976,1729902639744,-151.0,0.00041096,14]
[340836977,1729902639755,-151.0,0.00041096,14]
[340836978,1729902639764,-151.0,0.00041096,14]
[340836979,1729902639774,-331.68554064,0.000411,2]
[340836980,1729902639784,-191.05158729,0.00041329,28]
[340836981,1729902639793,-186.99,0.00041575,2]
[340836982,1729902639803,-1000.0,0.00041905,2]
[340836983,1729902639812,-1762.03839193,0.00042,2]
[340836984,1729902639822,-10986.15,0.000426,7]
[340836985,1729902639831,-300.0,0.000426,15]
[340836986,1729902639841,-4280.42595121,0.00042689,9]
[340836987,1729902639850,-4280.42595121,0.0004269,9]
[340836988,1729902639860,-9315.0,0.000427,5]
[340836989,1729902639869,-700.0,0.000427,15]
[340836990,1729902639879,-920.39,0.00042726,2]
[340836991,1729902639888,-1100.0,0.000428,15]
[340836992,1729902639898,-171.33,0.00042895,2]
[340836993,1729902639907,-1500.0,0.000429,15]
[340836994,1729902639917,-666.32,0.00042902,7]
[340836995,1729902639926,-55645.5373657,0.0004297,9]
[340836996,1729902639935,-151.0,0.0004297,14]
[340836997,1729902639945,-151.0,0.0004297,14]
[340836998,1729902639954,-644.612795,0.0004297,14]
[340836999,1729902639964,-644.612795,0.0004297,14]
[340837000,1729902639973,-151.0,0.0004297,14]
[340837001,1729902639983,-165.700835,0.0004297,14]
[340837002,1729902639992,-151.0,0.0004298,14]
[340837003,1729902640002,-151.0,0.0004298,7]
[340837004,1729902640012,-151.0,0.0004298,14]
[340837005,1729902640021,-151.0,0.0004298,14]
[340837006,1729902640030,-151.0,0.0004298,14]
[340837007,1729902640040,-153.374372,0.0004298,14]
[340837008,1729902640049,-151.0,0.0004298,14]
[340837009,1729902640058,-151.0,0.0004298,14]
[340837010,1729902640067,-151.0,0.0004298,14]
[340837011,1729902640077,-237.22251,0.0004298,14]
[340837012,1729902640086,-237.22251,0.0004298,14]
[340837013,1729902640095,-151.0,0.0004298,14]
[340837014,1729902640104,-161.290749,0.0004298,14]
[340837015,1729902640114,-4280.42595121,0.0004298,9]
[340837016,1729902640123,-151.0,0.0004299,14]
[340837017,1729902640132,-207.120679,0.0004299,14]
[340837018,1729902640141,-207.120679,0.0004299,14]
[340837019,1729902640151,-151.0,0.0004299,14]
[340837020,1729902640160,-154.082143,0.0004299,14]
[340837021,1729902640169,-151.0,0.0004299,14]
[340837022,1729902640178,-151.0,0.0004299,14]
[340837023,1729902640187,-151.0,0.0004299,14]
[340837024,1729902640197,-151.0,0.0004299,14]
[340837025,1729902640207,-151.0,0.0004299,14]
[340837026,1729902640217,-151.0,0.0004299,14]
[340837027,1729902640227,-151.0,0.0004299,14]
[340837028,1729902640237,-34243.4076097,0.0004299,9]
[340837029,1729902640247,-25745.7948795,0.0004299,9]
[340837030,1729902640258,-62720.18308693,0.00043,2]
[340837031,1729902640270,-151.0,0.00043,14]
[340837032,1729902640280,-224.051724,0.00043,7]
[340837033,1729902640290,-628.427735,0.00043,14]
[340837034,1729902640300,-628.427735,0.00043,14]
[340837035,1729902640310,-151.0,0.00043,14]
[340837036,1729902640319,-151.0,0.00043,14]
[340837037,1729902640329,-151.0,0.00043,14]
[340837038,1729902640339,-151.0,0.00043,14]
[340837039,1729902640349,-151.0,0.00043,14]
[340837040,1729902640358,-151.0,0.00043,14]
[340837041,1729902640367,-151.0,0.00043,14]
[340837042,1729902640376,-151.0,0.00043,14]
[340837043,1729902640385,-151.0,0.00043,14]
[340837044,1729902640395,-151.0,0.00043,14]
[340837045,1729902640403,-151.0,0.00043,14]
[340837046,1729902640413,-151.0,0.00043,14]
[340837047,1729902640423,-151.0,0.00043,14]
[340837048,1729902640432,-151.0,0.00043,14]
[340837049,1729902640442,-151.0,0.00043,14]
[340837050,1729902640451,-151.0,0.00043,14]
[340837051,1729902640460,-151.0,0.00043,14]
[340837052,1729902640469,-151.0,0.00043,14]
[340837053,1729902640478,-151.0,0.00043,7]
[340837054,1729902640487,-151.0,0.00043,14]
[340837055,1729902640496,-151.0,0.00043,14]
[340837056,1729902640506,-151.0,0.00043,14]
[340837057,1729902640515,-151.0,0.00043,14]
[340837058,1729902640523,-151.0,0.00043,14]
[340837059,1729902640532,-237.22251,0.00043,14]
[340837060,1729902640541,-237.22251,0.00043,14]
[340837061,1729902640550,-151.0,0.00043,14]
[340837062,1729902640559,-152.393785,0.00043,14]
[340837063,1729902640568,-151.0,0.00043,14]
[340837064,1729902640577,-644.612795,0.00043,14]
[340837065,1729902640586,-644.612795,0.00043,14]
[340837066,1729902640595,-151.0,0.00043,14]
[340837067,1729902640604,-165.700835,0.00043,14]
[340837068,1729902640613,-214.76058691,0.000431,15]
[340837069,1729902640622,-151.0,0.00043187,14]
[340837070,1729902640631,-4280.42595121,0.00043188,9]
[340837071,1729902640641,-8581.93162651,0.00043188,9]
[340837072,1729902640650,-151.0,0.00043188,14]
[340837073,1729902640659,-151.0,0.00043188,14]
[340837074,1729902640669,-151.0,0.00043188,14]
[340837075,1729902640678,-207.120679,0.00043196,14]
[340837076,1729902640687,-207.120679,0.00043196,14]
[340837077,1729902640696,-151.0,0.00043196,14]
[340837078,1729902640705,-155.760364,0.00043196,14]
[340837079,1729902640714,-151.0,0.00043196,14]
[340837080,1729902640723,-221.204056,0.00043196,14]
[340837081,1729902640733,-151.0,0.00043196,14]
[340837082,1729902640742,-261.2866,0.00043196,2]
[340837083,1729902640754,-357.44234493,0.00043197,60]
[340837084,1729902640763,-6022.86449765,0.00043198,2]
[340837085,1729902640773,-167.21705786,0.000432,10]
[340837086,1729902640782,-341.46519293,0.000432,2]
[340837087,1729902640791,-814.81481482,0.000432,2]
[340837088,1729902640800,-4280.42595121,0.0004328,9]
[340837089,1729902640809,-8560.85190242,0.00043286,9]
[340837090,1729902640818,-8581.93162651,0.00043286,9]
[340837091,1729902640827,-563.0,0.00043288,7]
[340837092,1729902640837,-4280.42595121,0.00043288,9]
[340837093,1729902640846,-8581.93162651,0.00043288,9]
[340837094,1729902640855,-12841.2778536,0.0004329,9]
[340837095,1729902640865,-17163.863253,0.0004329,9]
[340837096,1729902640874,-433.0,0.0004329,2]
[340837097,1729902640883,-151.0,0.0004329,14]
[340837098,1729902640892,-644.612795,0.0004329,14]
[340837099,1729902640902,-644.612795,0.0004329,14]
[340837100,1729902640911,-151.0,0.0004329,14]
[340837101,1729902640920,-165.700835,0.0004329,14]
[340837102,1729902640931,-356.92147856,0.0004329,2]
[340837103,1729902640941,-356.92147856,0.0004329,2]
[340837104,1729902640951,-151.0,0.00043296,14]
[340837105,1729902640961,-151.0,0.00043296,14]
[340837106,1729902640970,-151.0,0.00043296,14]
[340837107,1729902640979,-151.0,0.00043296,14]
[340837108,1729902640988,-151.0,0.00043296,14]
[340837109,1729902640997,-646.219306,0.00043296,14]
[340837110,1729902641008,-646.219306,0.00043296,14]
[340837111,1729902641017,-151.0,0.00043296,14]
[340837112,1729902641025,-151.0,0.00043296,14]
[340837113,1729902641035,-151.0,0.00043296,14]
[340837114,1729902641045,-151.0,0.00043296,14]
[340837115,1729902641056,-151.0,0.00043296,7]
[340837116,1729902641065,-162.90652343,0.00043296,14]
[340837117,1729902641074,-186.435872,0.00043296,14]
[340837118,1729902641083,-151.0,0.00043296,14]
[340837119,1729902641093,-237.22251,0.00043296,14]
[340837120,1729902641103,-237.22251,0.00043296,14]
[340837121,1729902641113,-151.0,0.00043296,14]
[340837122,1729902641123,-15942.79155756,0.00043296,30]
[340837123,1729902641133,-208.37030032,0.00043296,30]
[340837124,1729902641143,-500.0,0.00043297,2]
[340837125,1729902641153,-154.834734,0.00043298,14]
[340837126,1729902641164,-151.262348,0.00043298,14]
[340837127,1729902641174,-151.262348,0.00043298,14]
[340837128,1729902641183,-151.262348,0.00043298,14]
[340837129,1729902641197,-151.262348,0.00043298,14]
[340837130,1729902641206,-151.262348,0.00043298,14]
[340837131,1729902641215,-151.262348,0.00043298,14]
[340837132,1729902641224,-151.262348,0.00043298,14]
[340837133,1729902641233,-151.262348,0.00043298,14]
[340837134,1729902641242,-151.0,0.00043298,14]
[340837135,1729902641254,-628.427735,0.00043298,14]
[340837136,1729902641264,-628.427735,0.00043298,14]
[340837137,1729902641276,-151.0,0.00043298,14]
[340837138,1729902641286,-151.0,0.00043298,14]
[340837139,1729902641295,-151.0,0.00043298,14]
[340837140,1729902641304,-151.0,0.00043298,14]
[340837141,1729902641314,-151.0,0.00043298,14]
[340837142,1729902641323,-151.0,0.00043298,14]
[340837143,1729902641332,-151.0,0.00043298,14]
[340837144,1729902641344,-151.0,0.00043298,14]
[340837145,1729902641354,-150.0,0.000433,120]
[340837146,1729902641363,-628.427735,0.000433,14]
[340837147,1729902641372,-628.427735,0.000433,14]
[340837148,1729902641382,-628.427735,0.000433,14]
[340837149,1729902641391,-628.427735,0.000433,14]
[340837150,1729902641400,-628.427735,0.000433,14]
[340837151,1729902641409,-628.427735,0.000433,14]
[340837152,1729902641418,-628.427735,0.000433,14]
[340837153,1729902641427,-628.427735,0.000433,14]
[340837154,1729902641437,-628.427735,0.000433,14]
[340837155,1729902641447,-628.427735,0.000433,14]
[340837156,1729902641458,-151.0,0.000433,14]
[340837157,1729902641468,-151.0,0.000433,14]
[340837158,1729902641477,-267.750922,0.000433,14]
[340837159,1729902641487,-151.0,0.000433,14]
[340837160,1729902641496,-151.0,0.000433,14]
[340837161,1729902641507,-151.0,0.000433,14]
[340837162,1729902641516,-151.0,0.000433,14]
[340837163,1729902641525,-151.0,0.000433,14]
[340837164,1729902641535,-151.0,0.000433,14]
[340837165,1729902641544,-151.0,0.000433,14]
[340837166,1729902641553,-291.25664,0.000433,14]
[340837167,1729902641563,-151.0,0.000433,14]
[340837168,1729902641572,-151.0,0.000433,14]
[340837169,1729902641582,-151.0,0.000433,14]
[340837170,1729902641591,-257.854953,0.000433,14]
[340837171,1729902641600,-151.0,0.000433,14]
[340837172,1729902641610,-151.0,0.000433,14]
[340837173,1729902641619,-242.021079,0.000433,14]
[340837174,1729902641633,-151.0,0.000433,14]
[340837175,1729902641643,-646.219306,0.000433,14]
[340837176,1729902641652,-646.219306,0.000433,14]
[340837177,1729902641662,-646.219306,0.000433,14]
[340837178,1729902641671,-646.219306,0.000433,14]
[340837179,1729902641681,-646.219306,0.000433,14]
[340837180,1729902641691,-646.219306,0.000433,14]
[340837181,1729902641700,-646.219306,0.000433,14]
[340837182,1729902641709,-646.219306,0.000433,14]
[340837183,1729902641719,-646.219306,0.000433,14]
[340837184,1729902641729,-646.219306,0.000433,14]
[340837185,1729902641738,-151.0,0.000433,14]
[340837186,1729902641748,-151.0,0.000433,14]
[340837187,1729902641852,-151.0,0.000433,14]
[340837188,1729902641863,-287.917486,0.000433,14]
[340837189,1729902641873,-244.10026,0.000433,14]
[340837190,1729902641882,-151.0,0.000433,14]
[340837191,1729902641892,-151.0,0.000433,14]
[340837192,1729902641901,-151.0,0.000433,14]
[340837193,1729902641911,-151.0,0.000433,14]
[340837194,1729902641920,-151.0,0.000433,14]
[340837195,1729902641930,-207.642098,0.000433,14]
[340837196,1729902641939,-154.68413,0.000433,14]
[340837197,1729902641948,-151.0,0.000433,14]
[340837198,1729902641958,-207.120679,0.000433,14]
[340837199,1729902641967,-207.120679,0.000433,14]
[340837200,1729902641976,-207.120679,0.000433,14]
[340837201,1729902641986,-207.120679,0.000433,14]
[340837202,1729902641994,-207.120679,0.000433,14]
[340837203,1729902642004,-207.120679,0.000433,14]
[340837204,1729902642013,-207.120679,0.000433,14]
[340837205,1729902642023,-207.120679,0.000433,14]
[340837206,1729902642032,-207.120679,0.000433,14]
[340837207,1729902642041,-293.449514,0.000433,14]
[340837208,1729902642050,-207.120679,0.000433,14]
[340837209,1729902642060,-207.120679,0.000433,14]
[340837210,1729902642069,-207.120679,0.000433,14]
[340837211,1729902642079,-151.0,0.000433,14]
[340837212,1729902642088,-151.0,0.000433,14]
[340837213,1729902642097,-151.0,0.000433,14]
[340837214,1729902642106,-151.0,0.000433,14]
[340837215,1729902642116,-151.0,0.000433,14]
[340837216,1729902642125,-151.0,0.000433,14]
[340837217,1729902642134,-234.287018,0.000433,7]
[340837218,1729902642143,-151.0,0.000433,14]
[340837219,1729902642152,-186.254273,0.000433,14]
[340837220,1729902642162,-237.22251,0.000433,14]
[340837221,1729902642171,-237.22251,0.000433,14]
[340837222,1729902642181,-237.22251,0.000433,14]
[340837223,1729902642190,-237.22251,0.000433,14]
[340837224,1729902642200,-237.22251,0.000433,14]
[340837225,1729902642209,-237.22251,0.000433,14]
[340837226,1729902642219,-237.22251,0.000433,14]
[340837227,1729902642228,-237.22251,0.000433,14]
[340837228,1729902642237,-237.22251,0.000433,14]
[340837229,1729902642246,-237.22251,0.000433,14]
[340837230,1729902642258,-151.0,0.000433,14]
[340837231,1729902642270,-151.0,0.000433,14]
[340837232,1729902642280,-151.0,0.000433,14]
[340837233,1729902642290,-151.0,0.000433,14]
[340837234,1729902642299,-151.0,0.000433,14]
[340837235,1729902642307,-644.612795,0.000433,14]
[340837236,1729902642317,-644.612795,0.000433,14]
[340837237,1729902642327,-644.612795,0.000433,14]
[340837238,1729902642337,-644.612795,0.000433,14]
[340837239,1729902642347,-644.612795,0.000433,14]